[Event "*** SCC Grand Prix: Titled Tuesday Blitz"]
[Site "Chess.com"]
[Date "2020.10.06"]
[Round "9"]
[White "Unkreativ3"]
[Black "Nara_Kh"]
[Result "1-0"]
[WhiteElo "2537"]
[BlackElo "2390"]
[TimeControl "180+1"]
[EndTime "11:47:18 PDT"]
[Termination "Unkreativ3 won by resignation"]

1. d4 {[%clk 0:03:00]} 1... d5 {[%clk 0:02:59.3]} 2. c4 {[%clk 0:03:00.2]} 2...
c6 {[%clk 0:02:59.4]} 3. cxd5 {[%clk 0:03:00.5]} 3... cxd5 {[%clk 0:03:00.3]} 4.
Nc3 {[%clk 0:03:01.1]} 4... Nf6 {[%clk 0:03:00.2]} 5. f3 {[%clk 0:03:01.4]} 5...
Nc6 {[%clk 0:02:47.4]} 6. e4 {[%clk 0:03:01]} 6... dxe4 {[%clk 0:02:43.1]} 7. d5
{[%clk 0:03:01.9]} 7... Ne5 {[%clk 0:02:41.7]} 8. fxe4 {[%clk 0:03:02.2]} 8...
a6 {[%clk 0:02:34.1]} 9. Nf3 {[%clk 0:03:02.3]} 9... Nfd7 {[%clk 0:02:34]} 10.
Bf4 {[%clk 0:03:00.5]} 10... Qc7 {[%clk 0:02:31.4]} 11. Nxe5 {[%clk 0:02:57.1]}
11... Nxe5 {[%clk 0:02:31.3]} 12. Qd2 {[%clk 0:02:50]} 12... g5 {[%clk
0:02:15.8]} 13. Bxg5 {[%clk 0:02:35.9]} 13... Bg7 {[%clk 0:02:15.6]} 14. Be2
{[%clk 0:02:34.1]} 14... Qd6 {[%clk 0:02:10]} 15. O-O {[%clk 0:02:29.2]} 15...
Qg6 {[%clk 0:02:05.8]} 16. Rad1 {[%clk 0:02:03.2]} 16... h6 {[%clk 0:01:59.3]}
17. Bf4 {[%clk 0:02:02.4]} 17... Bh3 {[%clk 0:01:50.9]} 18. Bg3 {[%clk 0:02:02]}
18... Bg4 {[%clk 0:01:40]} 19. Bxg4 {[%clk 0:01:39.3]} 19... Qxg4 {[%clk
0:01:39.8]} 20. Qf4 {[%clk 0:01:19.6]} 20... O-O {[%clk 0:01:25.6]} 21. h3
{[%clk 0:00:55.8]} 21... Qxf4 {[%clk 0:01:16.1]} 22. Bxf4 {[%clk 0:00:55]} 22...
Nc4 {[%clk 0:01:16.8]} 23. Bc1 {[%clk 0:00:54.8]} 23... Rac8 {[%clk 0:01:14.5]}
24. Rf3 {[%clk 0:00:51.1]} 24... b5 {[%clk 0:01:11.6]} 25. b3 {[%clk 0:00:33.6]}
25... Ne5 {[%clk 0:01:00.6]} 26. Rg3 {[%clk 0:00:33.6]} 26... Ng6 {[%clk
0:01:00.7]} 27. Ne2 {[%clk 0:00:31]} 27... Rc2 {[%clk 0:00:56.7]} 28. Rd2 {[%clk
0:00:30.4]} 28... Rfc8 {[%clk 0:00:55.2]} 29. Rxc2 {[%clk 0:00:18.7]} 29... Rxc2
{[%clk 0:00:56.1]} 30. Kf1 {[%clk 0:00:19.1]} 30... Rxa2 {[%clk 0:00:52.3]} 31.
h4 {[%clk 0:00:18.9]} 31... Kh7 {[%clk 0:00:42.2]} 32. h5 {[%clk 0:00:19.1]}
32... Ne5 {[%clk 0:00:41.7]} 33. Be3 {[%clk 0:00:18.3]} 33... Nd3 {[%clk
0:00:39.4]} 34. Nf4 {[%clk 0:00:15.8]} 34... Nb4 {[%clk 0:00:21.6]} 35. Bc5
{[%clk 0:00:15.2]} 35... Nc2 {[%clk 0:00:16.2]} 36. Bxe7 {[%clk 0:00:14.8]}
36... Bd4 {[%clk 0:00:16.6]} 37. Rf3 {[%clk 0:00:15]} 37... Ne3+ {[%clk
0:00:16.7]} 38. Ke1 {[%clk 0:00:14.2]} 38... Nxg2+ {[%clk 0:00:15.4]} 39. Nxg2
{[%clk 0:00:13.9]} 39... Rxg2 {[%clk 0:00:16.3]} 40. Rxf7+ {[%clk 0:00:14.2]}
40... Kg8 {[%clk 0:00:17.1]} 41. Rf3 {[%clk 0:00:13.6]} 41... Rc2 {[%clk
0:00:15.5]} 42. d6 {[%clk 0:00:13.4]} 42... Bc5 {[%clk 0:00:14.8]} 43. Kd1
{[%clk 0:00:12.3]} 43... Rg2 {[%clk 0:00:14.2]} 44. Rd3 {[%clk 0:00:12.3]} 44...
Kf7 {[%clk 0:00:13.7]} 45. Bh4 {[%clk 0:00:11.8]} 45... Bb6 {[%clk 0:00:13.9]}
46. d7 {[%clk 0:00:11.7]} 46... Rg1+ {[%clk 0:00:14.3]} 47. Ke2 {[%clk
0:00:11.8]} 47... Rg4 {[%clk 0:00:14.7]} 48. Bf2 {[%clk 0:00:11.4]} 48... Ke6
{[%clk 0:00:14.8]} 49. Bxb6 {[%clk 0:00:10.8]} 49... Rxe4+ {[%clk 0:00:14.7]}
50. Kf3 {[%clk 0:00:09.5]} 50... Rh4 {[%clk 0:00:12.8]} 51. d8=Q {[%clk
0:00:08.9]} 1-0

[Event "*** SCC Grand Prix: Titled Tuesday Blitz"]
[Site "Chess.com"]
[Date "2020.10.06"]
[Round "9"]
[White "googlegoom"]
[Black "chessplayer9919"]
[Result "1-0"]
[WhiteElo "2431"]
[BlackElo "2591"]
[TimeControl "180+1"]
[EndTime "11:47:28 PDT"]
[Termination "googlegoom won on time"]

1. Nf3 {[%clk 0:03:00.2]} 1... Nf6 {[%clk 0:02:56.5]} 2. b3 {[%clk 0:02:57.7]}
2... b6 {[%clk 0:02:50.9]} 3. Bb2 {[%clk 0:02:57.7]} 3... Bb7 {[%clk 0:02:51]}
4. e3 {[%clk 0:02:58.3]} 4... e6 {[%clk 0:02:50]} 5. Be2 {[%clk 0:02:58.8]} 5...
Be7 {[%clk 0:02:49.7]} 6. O-O {[%clk 0:02:59.4]} 6... O-O {[%clk 0:02:50]} 7. d4
{[%clk 0:03:00.1]} 7... c5 {[%clk 0:02:47.8]} 8. Nbd2 {[%clk 0:03:00.6]} 8... d6
{[%clk 0:02:45.4]} 9. c4 {[%clk 0:03:01.1]} 9... Nbd7 {[%clk 0:02:44.3]} 10. Qc2
{[%clk 0:03:01.7]} 10... Rc8 {[%clk 0:02:42.6]} 11. Rac1 {[%clk 0:03:02.3]}
11... Qc7 {[%clk 0:02:40.6]} 12. Qb1 {[%clk 0:03:02.9]} 12... Qb8 {[%clk
0:02:40.7]} 13. Rfd1 {[%clk 0:03:02.9]} 13... Qa8 {[%clk 0:02:39.2]} 14. Ne1
{[%clk 0:03:03.2]} 14... Rfd8 {[%clk 0:02:38.6]} 15. Bf3 {[%clk 0:03:03.5]}
15... Nf8 {[%clk 0:02:38]} 16. Qa1 {[%clk 0:03:02.4]} 16... Ng6 {[%clk
0:02:33.9]} 17. Bxb7 {[%clk 0:03:00.5]} 17... Qxb7 {[%clk 0:02:33.6]} 18. Ndf3
{[%clk 0:03:01.2]} 18... Ne8 {[%clk 0:02:24.9]} 19. Qb1 {[%clk 0:02:59.3]} 19...
Bf6 {[%clk 0:02:19.4]} 20. Rd2 {[%clk 0:02:58.9]} 20... cxd4 {[%clk 0:02:11.2]}
21. Nxd4 {[%clk 0:02:53.2]} 21... d5 {[%clk 0:02:08.3]} 22. cxd5 {[%clk
0:02:39.4]} 22... Rxc1 {[%clk 0:02:06.3]} 23. Qxc1 {[%clk 0:02:39.5]} 23... Qxd5
{[%clk 0:01:42.7]} 24. Ndf3 {[%clk 0:02:37.1]} 24... Qa8 {[%clk 0:01:37.9]} 25.
h3 {[%clk 0:02:24]} 25... h6 {[%clk 0:01:33.8]} 26. Nd3 {[%clk 0:02:11.2]} 26...
Qe4 {[%clk 0:01:24.4]} 27. Bxf6 {[%clk 0:01:37.6]} 27... Nxf6 {[%clk 0:01:18]}
28. Nc5 {[%clk 0:01:19.4]} 28... Qa8 {[%clk 0:01:16.5]} 29. Na4 {[%clk 0:01:08]}
29... Ne4 {[%clk 0:01:14]} 30. Rxd8+ {[%clk 0:01:05.2]} 30... Qxd8 {[%clk
0:01:14.9]} 31. Qc2 {[%clk 0:01:05.6]} 31... Qd5 {[%clk 0:01:00.8]} 32. Nc3
{[%clk 0:01:05.3]} 32... Nxc3 {[%clk 0:00:57.8]} 33. Qxc3 {[%clk 0:01:05.9]}
33... Qd1+ {[%clk 0:00:54.8]} 34. Kh2 {[%clk 0:01:06.4]} 34... Qe2 {[%clk
0:00:54.6]} 35. Qd2 {[%clk 0:01:06.7]} 35... Qf1 {[%clk 0:00:49.4]} 36. Qe1
{[%clk 0:01:01.1]} 36... Qd3 {[%clk 0:00:43.1]} 37. Qd2 {[%clk 0:01:00]} 37...
Qb1 {[%clk 0:00:42.9]} 38. g3 {[%clk 0:00:53.8]} 38... Qe4 {[%clk 0:00:26.7]}
39. Nd4 {[%clk 0:00:51.2]} 39... Ne5 {[%clk 0:00:26.2]} 40. Kg1 {[%clk
0:00:47.6]} 40... Qxd4 {[%clk 0:00:18.7]} 41. Qxd4 {[%clk 0:00:45.3]} 41... Nf3+
{[%clk 0:00:18.8]} 42. Kf1 {[%clk 0:00:46]} 42... Nxd4 {[%clk 0:00:19.7]} 43.
exd4 {[%clk 0:00:46.2]} 43... Kf8 {[%clk 0:00:20.6]} 44. Ke2 {[%clk 0:00:46.9]}
44... Ke7 {[%clk 0:00:20.9]} 45. Kd2 {[%clk 0:00:46.6]} 45... Kd6 {[%clk
0:00:20.7]} 46. Ke2 {[%clk 0:00:41.4]} 46... Kd5 {[%clk 0:00:20.2]} 47. Kd3
{[%clk 0:00:41.8]} 47... g6 {[%clk 0:00:16.3]} 48. Ke3 {[%clk 0:00:39.2]} 48...
b5 {[%clk 0:00:16]} 49. g4 {[%clk 0:00:35.9]} 49... g5 {[%clk 0:00:15.6]} 50. a3
{[%clk 0:00:32.9]} 50... a5 {[%clk 0:00:12.7]} 51. Kd3 {[%clk 0:00:31.2]} 51...
f6 {[%clk 0:00:06.4]} 52. a4 {[%clk 0:00:23.8]} 52... bxa4 {[%clk 0:00:02.9]}
53. bxa4 {[%clk 0:00:24.7]} 53... f5 {[%clk 0:00:02]} 54. f3 {[%clk 0:00:19.1]}
54... f4 {[%clk 0:00:01.4]} 55. Kc3 {[%clk 0:00:19]} 55... Kd6 {[%clk
0:00:01.5]} 56. Kd2 {[%clk 0:00:11.8]} 56... Kc6 {[%clk 0:00:01.3]} 57. Kc2
{[%clk 0:00:11.5]} 57... Kd5 {[%clk 0:00:01.2]} 58. Kd3 {[%clk 0:00:11.3]} 1-0

[Event "*** SCC Grand Prix: Titled Tuesday Blitz"]
[Site "Chess.com"]
[Date "2020.10.06"]
[Round "9"]
[White "Shivagami"]
[Black "PlotnikovPavel"]
[Result "1/2-1/2"]
[WhiteElo "2225"]
[BlackElo "2352"]
[TimeControl "180+1"]
[EndTime "11:47:31 PDT"]
[Termination "Game drawn by repetition"]

1. d4 {[%clk 0:03:00.9]} 1... d5 {[%clk 0:02:50.8]} 2. Bf4 {[%clk 0:02:59.6]}
2... Nf6 {[%clk 0:02:46.8]} 3. e3 {[%clk 0:02:59.8]} 3... g6 {[%clk 0:02:46]} 4.
c3 {[%clk 0:02:58]} 4... Bg7 {[%clk 0:02:45.9]} 5. Nd2 {[%clk 0:02:58.1]} 5...
O-O {[%clk 0:02:46]} 6. Bd3 {[%clk 0:02:55.6]} 6... Nbd7 {[%clk 0:02:44.6]} 7.
Ngf3 {[%clk 0:02:55.8]} 7... c5 {[%clk 0:02:44.6]} 8. Ne5 {[%clk 0:02:55.8]}
8... Nh5 {[%clk 0:02:38.2]} 9. Nxd7 {[%clk 0:02:47.1]} 9... Qxd7 {[%clk
0:02:29]} 10. Be5 {[%clk 0:02:45.6]} 10... Bxe5 {[%clk 0:02:27.5]} 11. dxe5
{[%clk 0:02:45.9]} 11... Qe6 {[%clk 0:02:26.6]} 12. f4 {[%clk 0:02:42.5]} 12...
Ng7 {[%clk 0:02:23.5]} 13. O-O {[%clk 0:02:42]} 13... f6 {[%clk 0:02:23.4]} 14.
Nf3 {[%clk 0:02:38.3]} 14... Nf5 {[%clk 0:02:20]} 15. Qe2 {[%clk 0:02:33.5]}
15... c4 {[%clk 0:02:18.6]} 16. Bc2 {[%clk 0:02:32.4]} 16... Qb6 {[%clk
0:02:17.3]} 17. Nd4 {[%clk 0:02:18.4]} 17... Qxb2 {[%clk 0:02:01.5]} 18. Rab1
{[%clk 0:01:39.6]} 18... Qxa2 {[%clk 0:01:41]} 19. Ra1 {[%clk 0:01:32.7]} 19...
Qb2 {[%clk 0:01:40.3]} 20. Rfb1 {[%clk 0:01:24.7]} 20... Qxc3 {[%clk 0:01:39.6]}
21. Bxf5 {[%clk 0:01:15.8]} 21... Bxf5 {[%clk 0:01:30.4]} 22. Nxf5 {[%clk
0:01:13.5]} 22... gxf5 {[%clk 0:01:29.9]} 23. Qf3 {[%clk 0:00:57.7]} 23... fxe5
{[%clk 0:01:16.8]} 24. Qxd5+ {[%clk 0:00:57.4]} 24... Kh8 {[%clk 0:01:16]} 25.
fxe5 {[%clk 0:00:53.2]} 25... Qxe3+ {[%clk 0:01:15.2]} 26. Kh1 {[%clk
0:00:53.3]} 26... Rad8 {[%clk 0:01:12.5]} 27. Qxc4 {[%clk 0:00:48.4]} 27... Qxe5
{[%clk 0:01:10.1]} 28. Rxa7 {[%clk 0:00:44.3]} 28... b5 {[%clk 0:01:00.2]} 29.
Qh4 {[%clk 0:00:33.6]} 29... Rfe8 {[%clk 0:00:24.2]} 30. h3 {[%clk 0:00:32.2]}
30... Rd2 {[%clk 0:00:18.7]} 31. Rb7 {[%clk 0:00:19.5]} 31... Qd5 {[%clk
0:00:17.2]} 32. Qg3 {[%clk 0:00:14.7]} 32... Qxb7 {[%clk 0:00:15]} 33. Qe5+
{[%clk 0:00:14.9]} 33... Kg8 {[%clk 0:00:14.5]} 34. Qe6+ {[%clk 0:00:15.3]}
34... Kg7 {[%clk 0:00:14.7]} 35. Qe5+ {[%clk 0:00:15.8]} 35... Kg6 {[%clk
0:00:13.1]} 36. Qe6+ {[%clk 0:00:14.8]} 36... Kg7 {[%clk 0:00:11.7]} 37. Qe5+
{[%clk 0:00:15.1]} 37... Kf7 {[%clk 0:00:11.7]} 38. Qxf5+ {[%clk 0:00:15.2]}
38... Kg8 {[%clk 0:00:11.8]} 39. Qg5+ {[%clk 0:00:13.3]} 39... Kh8 {[%clk
0:00:11.5]} 40. Qe5+ {[%clk 0:00:13.5]} 40... Kg8 {[%clk 0:00:11.7]} 41. Qg5+
{[%clk 0:00:13.6]} 41... Kh8 {[%clk 0:00:12]} 42. Qxd2 {[%clk 0:00:13.9]} 42...
e5 {[%clk 0:00:10.1]} 43. Qd3 {[%clk 0:00:12.1]} 43... Rg8 {[%clk 0:00:08.6]}
44. Rb2 {[%clk 0:00:10.4]} 44... b4 {[%clk 0:00:07.6]} 45. Qe3 {[%clk
0:00:07.2]} 45... Qd5 {[%clk 0:00:05.3]} 46. Qe2 {[%clk 0:00:06.6]} 46... b3
{[%clk 0:00:04.2]} 47. Rd2 {[%clk 0:00:06.1]} 47... Qc5 {[%clk 0:00:02.2]} 48.
Rb2 {[%clk 0:00:05.6]} 48... Qc1+ {[%clk 0:00:02.2]} 49. Kh2 {[%clk 0:00:05.2]}
49... Qc3 {[%clk 0:00:02.8]} 50. Rb1 {[%clk 0:00:04.4]} 50... Qg3+ {[%clk
0:00:02.7]} 51. Kh1 {[%clk 0:00:04.1]} 51... Qc3 {[%clk 0:00:02.2]} 52. Rb2
{[%clk 0:00:04.3]} 52... Qg3 {[%clk 0:00:02]} 53. Qd2 {[%clk 0:00:04.4]} 53...
Qf4 {[%clk 0:00:02.1]} 54. Qe2 {[%clk 0:00:04.7]} 54... Qc1+ {[%clk 0:00:01.9]}
55. Kh2 {[%clk 0:00:04.6]} 55... Qf4+ {[%clk 0:00:02]} 56. Kh1 {[%clk
0:00:04.5]} 56... Qc1+ {[%clk 0:00:02.2]} 1/2-1/2

[Event "*** SCC Grand Prix: Titled Tuesday Blitz"]
[Site "Chess.com"]
[Date "2020.10.06"]
[Round "9"]
[White "Witik"]
[Black "Angel_Hranitel_37"]
[Result "1-0"]
[WhiteElo "2706"]
[BlackElo "2543"]
[TimeControl "180+1"]
[EndTime "11:47:34 PDT"]
[Termination "Witik won by checkmate"]

1. d4 {[%clk 0:03:00.9]} 1... Nf6 {[%clk 0:03:00.1]} 2. c4 {[%clk 0:03:00]} 2...
e6 {[%clk 0:03:00.3]} 3. Nf3 {[%clk 0:02:58.3]} 3... Bb4+ {[%clk 0:03:00.4]} 4.
Nbd2 {[%clk 0:02:57.5]} 4... b6 {[%clk 0:03:00.5]} 5. e3 {[%clk 0:02:55]} 5...
O-O {[%clk 0:02:57.7]} 6. Be2 {[%clk 0:02:51.9]} 6... d5 {[%clk 0:02:54.8]} 7.
a3 {[%clk 0:02:50.6]} 7... Bd6 {[%clk 0:02:53.1]} 8. b4 {[%clk 0:02:50.6]} 8...
c5 {[%clk 0:02:49.6]} 9. b5 {[%clk 0:02:45]} 9... cxd4 {[%clk 0:02:20.2]} 10.
exd4 {[%clk 0:02:42.5]} 10... dxc4 {[%clk 0:02:00.6]} 11. Nxc4 {[%clk
0:02:42.1]} 11... Bb7 {[%clk 0:02:01]} 12. O-O {[%clk 0:02:36.7]} 12... Bd5
{[%clk 0:01:51]} 13. Nxd6 {[%clk 0:02:35.3]} 13... Qxd6 {[%clk 0:01:51.9]} 14.
a4 {[%clk 0:02:35.8]} 14... Nbd7 {[%clk 0:01:51.3]} 15. Ba3 {[%clk 0:02:35]}
15... Qf4 {[%clk 0:01:50]} 16. Bxf8 {[%clk 0:02:33.4]} 16... Nxf8 {[%clk
0:01:50.9]} 17. Qd2 {[%clk 0:02:25.7]} 17... Qg4 {[%clk 0:01:50.8]} 18. h3
{[%clk 0:02:22.6]} 18... Qf5 {[%clk 0:01:32.1]} 19. Rfe1 {[%clk 0:01:58.5]}
19... Ng6 {[%clk 0:01:19.6]} 20. Qg5 {[%clk 0:01:37.8]} 20... Nf4 {[%clk
0:00:55.4]} 21. Qxf5 {[%clk 0:01:36.4]} 21... exf5 {[%clk 0:00:56.3]} 22. Bf1
{[%clk 0:01:28]} 22... h6 {[%clk 0:00:27.2]} 23. Ne5 {[%clk 0:01:26.1]} 23... g5
{[%clk 0:00:26.7]} 24. Rac1 {[%clk 0:01:23.7]} 24... Ne6 {[%clk 0:00:26.3]} 25.
Bd3 {[%clk 0:01:20.9]} 25... f4 {[%clk 0:00:20.7]} 26. Nc6 {[%clk 0:01:08.7]}
26... f3 {[%clk 0:00:15.4]} 27. Ne7+ {[%clk 0:01:05.9]} 27... Kg7 {[%clk
0:00:15.7]} 28. Nxd5 {[%clk 0:01:05.9]} 28... Nxd5 {[%clk 0:00:16.6]} 29. Be4
{[%clk 0:01:06.2]} 29... Rd8 {[%clk 0:00:17.1]} 30. Bxf3 {[%clk 0:01:05.7]}
30... Nxd4 {[%clk 0:00:17.6]} 31. Bxd5 {[%clk 0:01:05.2]} 31... Rxd5 {[%clk
0:00:18.5]} 32. Rc7 {[%clk 0:01:02.4]} 32... g4 {[%clk 0:00:09]} 33. hxg4 {[%clk
0:01:01.2]} 33... h5 {[%clk 0:00:09.5]} 34. gxh5 {[%clk 0:00:55.5]} 34... Rg5
{[%clk 0:00:09.9]} 35. Ree7 {[%clk 0:00:51.4]} 35... Nf3+ {[%clk 0:00:07.3]} 36.
Kf1 {[%clk 0:00:51.7]} 36... Ne5 {[%clk 0:00:07.3]} 37. f4 {[%clk 0:00:44.1]}
37... Rf5 {[%clk 0:00:07.3]} 38. g3 {[%clk 0:00:44.5]} 38... Nd3 {[%clk
0:00:03.8]} 39. Rxa7 {[%clk 0:00:42.7]} 39... Nc5 {[%clk 0:00:03.7]} 40. h6+
{[%clk 0:00:42.6]} 40... Kxh6 {[%clk 0:00:03.7]} 41. Rxf7 {[%clk 0:00:42.4]}
41... Rd5 {[%clk 0:00:04.6]} 42. g4 {[%clk 0:00:39.4]} 42... Rd4 {[%clk
0:00:03.2]} 43. Kg2 {[%clk 0:00:33.7]} 43... Kg6 {[%clk 0:00:02.3]} 44. Rg7+
{[%clk 0:00:27.7]} 44... Kf6 {[%clk 0:00:02.4]} 45. Raf7+ {[%clk 0:00:27.8]}
45... Ke6 {[%clk 0:00:02.8]} 46. Re7+ {[%clk 0:00:24.5]} 46... Kd6 {[%clk
0:00:01.8]} 47. f5 {[%clk 0:00:23.7]} 47... Rd2+ {[%clk 0:00:01.6]} 48. Kf3
{[%clk 0:00:23.6]} 48... Rd3+ {[%clk 0:00:01.9]} 49. Kf4 {[%clk 0:00:23.5]}
49... Rd4+ {[%clk 0:00:02.4]} 50. Kg5 {[%clk 0:00:23.1]} 50... Ne4+ {[%clk
0:00:03]} 51. Kg6 {[%clk 0:00:20.7]} 51... Nc3 {[%clk 0:00:02.2]} 52. Rd7+
{[%clk 0:00:20.5]} 52... Kc5 {[%clk 0:00:02.7]} 53. Rxd4 {[%clk 0:00:21.4]}
53... Kxd4 {[%clk 0:00:03.6]} 54. f6 {[%clk 0:00:21.8]} 54... Nxa4 {[%clk
0:00:04.5]} 55. f7 {[%clk 0:00:21.9]} 55... Nc3 {[%clk 0:00:05.4]} 56. f8=Q
{[%clk 0:00:22.2]} 56... Nd5 {[%clk 0:00:06.3]} 57. Rd7 {[%clk 0:00:21.7]} 57...
Kc4 {[%clk 0:00:07.2]} 58. Qf7 {[%clk 0:00:20]} 58... Kb4 {[%clk 0:00:07.7]} 59.
Qxd5 {[%clk 0:00:19.9]} 59... Ka5 {[%clk 0:00:08.6]} 60. Qc6 {[%clk 0:00:14.8]}
60... Kb4 {[%clk 0:00:09.5]} 61. Rd4+ {[%clk 0:00:14.8]} 61... Ka5 {[%clk
0:00:09.8]} 62. Qc3+ {[%clk 0:00:12.4]} 62... Kxb5 {[%clk 0:00:10.7]} 63. Qc4+
{[%clk 0:00:12.6]} 63... Ka5 {[%clk 0:00:11.6]} 64. Qa4# {[%clk 0:00:12.8]} 1-0

[Event "*** SCC Grand Prix: Titled Tuesday Blitz"]
[Site "Chess.com"]
[Date "2020.10.06"]
[Round "9"]
[White "ajdemipopushi"]
[Black "nochewycandy"]
[Result "1/2-1/2"]
[WhiteElo "2359"]
[BlackElo "2470"]
[TimeControl "180+1"]
[EndTime "11:47:37 PDT"]
[Termination "Game drawn by repetition"]

1. Nf3 {[%clk 0:03:00.9]} 1... g6 {[%clk 0:02:59.8]} 2. g3 {[%clk 0:03:01.2]}
2... Bg7 {[%clk 0:03:00.2]} 3. c4 {[%clk 0:03:01.6]} 3... d5 {[%clk 0:03:01]} 4.
cxd5 {[%clk 0:03:01]} 4... Qxd5 {[%clk 0:03:00.5]} 5. Bg2 {[%clk 0:03:00.1]}
5... Nf6 {[%clk 0:02:58.2]} 6. d4 {[%clk 0:02:56.6]} 6... O-O {[%clk 0:02:50.1]}
7. Nc3 {[%clk 0:02:56]} 7... Qd8 {[%clk 0:02:43]} 8. O-O {[%clk 0:02:55.1]} 8...
Na6 {[%clk 0:02:28.1]} 9. h3 {[%clk 0:02:52.8]} 9... c5 {[%clk 0:02:27.8]} 10.
d5 {[%clk 0:02:51.4]} 10... Ne8 {[%clk 0:02:06.5]} 11. e4 {[%clk 0:02:45.8]}
11... e6 {[%clk 0:02:05.3]} 12. Bg5 {[%clk 0:02:36.9]} 12... f6 {[%clk 0:02:01]}
13. Be3 {[%clk 0:02:32.7]} 13... e5 {[%clk 0:01:53]} 14. Qb3 {[%clk 0:02:04.1]}
14... Nd6 {[%clk 0:01:49.4]} 15. Nd2 {[%clk 0:02:03]} 15... b6 {[%clk
0:01:33.1]} 16. Rfd1 {[%clk 0:01:55.9]} 16... Nc7 {[%clk 0:01:32]} 17. Nc4
{[%clk 0:01:53.7]} 17... Nce8 {[%clk 0:01:30.1]} 18. a4 {[%clk 0:01:49.9]} 18...
Nxc4 {[%clk 0:01:27.3]} 19. Qxc4 {[%clk 0:01:49.7]} 19... Nd6 {[%clk 0:01:28.2]}
20. Qb3 {[%clk 0:01:49.1]} 20... a6 {[%clk 0:01:24.7]} 21. a5 {[%clk 0:01:41.5]}
21... bxa5 {[%clk 0:01:04.7]} 22. Bxc5 {[%clk 0:01:40.5]} 22... Rf7 {[%clk
0:00:57.5]} 23. Na4 {[%clk 0:01:03.3]} 23... Rb7 {[%clk 0:00:46.7]} 24. Qa3
{[%clk 0:00:58.3]} 24... Nb5 {[%clk 0:00:36.6]} 25. Qe3 {[%clk 0:00:53.7]} 25...
Bf8 {[%clk 0:00:32.8]} 26. Bxf8 {[%clk 0:00:45.9]} 26... Qxf8 {[%clk 0:00:33.3]}
27. f4 {[%clk 0:00:41.1]} 27... Nd4 {[%clk 0:00:27.5]} 28. fxe5 {[%clk
0:00:38.8]} 28... Nc2 {[%clk 0:00:25.5]} 29. Qc3 {[%clk 0:00:29.3]} 29... Nxa1
{[%clk 0:00:24.9]} 30. Rxa1 {[%clk 0:00:28.5]} 30... fxe5 {[%clk 0:00:21.8]} 31.
Qxe5 {[%clk 0:00:25.3]} 31... Rab8 {[%clk 0:00:20.1]} 32. Rf1 {[%clk 0:00:15.2]}
32... Qe7 {[%clk 0:00:16.6]} 33. Qxe7 {[%clk 0:00:13.9]} 33... Rxe7 {[%clk
0:00:16.4]} 34. Rf2 {[%clk 0:00:12.1]} 34... Rb4 {[%clk 0:00:16.8]} 35. Nc3
{[%clk 0:00:11.7]} 35... Bd7 {[%clk 0:00:16.7]} 36. Re2 {[%clk 0:00:11.4]} 36...
Bb5 {[%clk 0:00:15.7]} 37. Nxb5 {[%clk 0:00:10.9]} 37... axb5 {[%clk 0:00:16.1]}
38. e5 {[%clk 0:00:11.4]} 38... Rd4 {[%clk 0:00:14.8]} 39. Kf2 {[%clk
0:00:09.1]} 39... a4 {[%clk 0:00:15.2]} 40. Kf1 {[%clk 0:00:07.5]} 40... b4
{[%clk 0:00:15.4]} 41. Ke1 {[%clk 0:00:06.7]} 41... a3 {[%clk 0:00:15.2]} 42. d6
{[%clk 0:00:07.2]} 42... Re8 {[%clk 0:00:11.8]} 43. bxa3 {[%clk 0:00:06.5]}
43... bxa3 {[%clk 0:00:11.3]} 44. Bf3 {[%clk 0:00:06.3]} 44... a2 {[%clk
0:00:11.3]} 45. Rxa2 {[%clk 0:00:06]} 45... Rxe5+ {[%clk 0:00:11.7]} 46. Kf2
{[%clk 0:00:06.5]} 46... Rxd6 {[%clk 0:00:12.2]} 47. Re2 {[%clk 0:00:06.6]}
47... Rxe2+ {[%clk 0:00:11.9]} 48. Bxe2 {[%clk 0:00:06.9]} 48... Rf6+ {[%clk
0:00:12.8]} 49. Ke3 {[%clk 0:00:06.9]} 49... Kg7 {[%clk 0:00:13.7]} 50. h4
{[%clk 0:00:07.4]} 50... h6 {[%clk 0:00:14.6]} 51. Bf3 {[%clk 0:00:08]} 51...
Re6+ {[%clk 0:00:14.8]} 52. Kf4 {[%clk 0:00:08.2]} 52... Re7 {[%clk 0:00:15.7]}
53. Be4 {[%clk 0:00:08]} 53... Rc7 {[%clk 0:00:16.6]} 54. Bf3 {[%clk 0:00:08.1]}
54... Kf6 {[%clk 0:00:17.1]} 55. Be4 {[%clk 0:00:08.1]} 55... g5+ {[%clk
0:00:17.6]} 56. hxg5+ {[%clk 0:00:08.1]} 56... hxg5+ {[%clk 0:00:18.5]} 57. Kf3
{[%clk 0:00:07.5]} 57... Rc4 {[%clk 0:00:19.4]} 58. Bd5 {[%clk 0:00:07.5]} 58...
Rb4 {[%clk 0:00:19.5]} 59. Bc6 {[%clk 0:00:07.5]} 59... Ke5 {[%clk 0:00:18.2]}
60. Bd7 {[%clk 0:00:06.7]} 60... Kf6 {[%clk 0:00:18.1]} 61. Bc6 {[%clk
0:00:06.8]} 61... Rd4 {[%clk 0:00:18.5]} 62. Bb7 {[%clk 0:00:06.7]} 62... Rd8
{[%clk 0:00:17.5]} 63. Bc6 {[%clk 0:00:06.5]} 63... Kf5 {[%clk 0:00:17.4]} 64.
Be4+ {[%clk 0:00:05.8]} 64... Ke5 {[%clk 0:00:18]} 65. Bb7 {[%clk 0:00:05.8]}
65... Rd4 {[%clk 0:00:16.9]} 66. Bc8 {[%clk 0:00:05.1]} 66... Rc4 {[%clk
0:00:16.7]} 67. Bd7 {[%clk 0:00:05.3]} 67... Kf6 {[%clk 0:00:14]} 68. Bb5 {[%clk
0:00:04.1]} 68... Rb4 {[%clk 0:00:13.9]} 69. Bc6 {[%clk 0:00:04.5]} 1/2-1/2